Workbook

Sheet RESUMO
B2: QUADRO RESUMO
B3: ITEM | C3: DESCRIÇÃO | I3: Nº de Postos (A) | J3: PREÇO MENSAL DO POSTO (B) | L3: PREÇO MENSAL TOTAL (R$) (C)=(AXB) | M3: PREÇO GLOBAL (D)=C x 6
B4: 1 | C4: Posto de Vigilância 12 horas diurnas, de segunda-feira a domingos, envolvendo 02 (dois) vigilantes em turnos de 12 (doze) x 36 (trinta e seis) horas. | I4: 1 | J4: =SUM('Posto Diurno Recife'!J135:K135) -> 13592.03 | L4: =J4*I4 -> 13592.03 | M4: =L4*'Posto Diurno Recife'!H9 -> 81552.18
B5: 2 | C5: Posto de Vigilância 12 horas noturnas, de segunda-feira a domingos, envolvendo 02 (dois) vigilantes em turnos de 12 (doze) x 36 (trinta e seis) horas. | I5: 1 | J5: ='Posto Noturno Recife'!J135:K135 -> 15758.34 | L5: =J5*I5 -> 15758.34 | M5: =L5*'Posto Noturno Recife'!H9 -> 94550.04
B6: VALOR MENSAL TOTAL | L6: =SUM(L4:L5) -> 29350.37
B7: VALOR GLOBAL TOTAL | L7: =SUM(M4:N5) -> 176102.22

Sheet Posto Diurno Recife
A1: CODEVASF RECIFE
A2: PLANILHA DE CUSTOS E FORMAÇÃO DE PREÇOS
A3: N° Processo: 59501.000532/2025-13
A4: Licitação N°
A5: Discriminação dos Serviços (dados referentes à contratação)
A6: A | B6: Data de apresentação da proposta (dia/mês/ano)
A7: B | B7: Município/UF | H7: Recife/PE
A8: C | B8: Ano Acordo, Convenção ou Sentença Normativa em Dissídio Coletivo | H8: 2025
A9: D | B9: Nº de meses de execução contratual | H9: 6
A11: IDENTIFICAÇÃO DO SERVIÇO
A12: Tipo de Serviço | D12: Unidade de Medida
A14: Vigilância Patrimonial | D14: POSTO DE SERVIÇO
A16: Mão-de-obra
A18: Dados a contratação dos custos referente à mão-de-obra
A19: 1 | B19: Tipo de serviço (mesmo serviço com características distintas)
A20: 2 | B20: Salário Normativo da Categoria Profissional | I20: 1699.46
A21: 3 | B21: Categoria profissional (vinculada à execução contratual) | I21: Vigilância Armada 12 Horas Diurna
B22: Classificação Brasileira de Ocupações (CBO) | I22: CBO 5173-30
A23: 4 | B23: Data base da categoria (dia/mês/ano) | I23: 2025-01-01
A25: MÓDULO 1 - Composição da remuneração
A27: 1 | B27: Remuneração | F27: Valor Unitário | I27: Valor (R$)
A28: A | B28: Salário Base | F28: =I20 -> 1699.46 | H28: 2 | I28: =F28*H28 -> 3398.92
A29: B | B29: Adicional de Periculosidade | F29: =F28*30% -> 509.84 | H29: 2 | I29: =F29*H29 -> 1019.68
A30: C | B30: Adicional Noturno | F30: 0 | H30: 2 | I30: 0
A31: D | B31: Hora Noturna Reduzida | F31: 0 | H31: 2 | I31: 0
B32: Total da Remuneração | I32: =SUM(I28:K31) -> 4418.6
A34: MÓDULO 2 - Encargos e Benefícios Anuais, Mensais e Diários
A35: Submódulo 2.1 - 13° (décimo terceiro) Salário, Férias e Adicional de Férias
A37: 2.1 | B37: 13° Salário, Férias e Adicional de Férias | H37: % | J37: Valor (R$)
A38: A | B38: 13° Salário | H38: 0.0833 | J38: =$I$32*H38 -> 368.07
A39: B | B39: Férias e Adicional de Férias | H39: 0.1111 | J39: =$I$32*H39 -> 490.91
A40: TOTAL | H40: =SUM(H38:I39) -> 0.1944 | J40: =SUM(J38:K39) -> 858.98
A42: Submódulo 2.2 - Encargos previdenciários, FGTS e outras contribuições
A44: 2.2 | B44: Encargos previdenciários, FGTS e outras contribuições | H44: % | J44: Valor (R$)
A45: A | B45: INSS | H45: 0.2 | J45: =($I$32+$J$40)*H45 -> 1055.52
A46: B | B46: SESI ou SESC | H46: 0.015 | J46: =($I$32+$J$40)*H46 -> 79.16
A47: C | B47: SENAI ou SENAC | H47: 0.01 | J47: 52.78
A48: D | B48: INCRA | H48: 0.002 | J48: 10.56
A49: E | B49: Salário Educação | H49: 0.025 | J49: 131.94
A50: F | B50: FGTS | H50: 0.08 | J50: 422.21
A51: G | B51: Seguro Acidente do Trabalho | H51: 0.03 | J51: 158.33
A52: H | B52: SEBRAE | H52: 0.006 | J52: 31.67
A53: TOTAL | H53: =SUM(H45:I52) -> 0.368 | J53: =SUM(J45:K52) -> 1942.17
A55: Submódulo 2.3 - Benefícios Mensais e Diários
A57: 2.3 | B57: Benefícios Mensais e Diários | F57: Valor Unitário | I57: Valor (R$)
A58: A | B58: Transporte | F58: =(15*2*4.3)-(F28*6%) -> 27.03 | H58: 2 | I58: =F58*H58 -> 54.06
A59: B | B59: Auxílio Alimentação (R$ 39,53 por dia) | F59: =(40.53-1)*15 -> 592.95 | H59: 2 | I59: =F59*H59 -> 1185.9 | L59: cláusula décima quarta
A60: C | B60: Beneficios Sociais | F60: 67.32 | H60: 2 | I60: 134.64 | L60: parágrafo segundo da cláusula décima sexta
A61: D | B61: Seguro de Vida, invalidez e funeral | F61: =((26*I20)+(52*I20))*0.0078%+3000*0.00955% -> 10.63 | H61: 2 | I61: =F61*H61 -> 21.26 | L61: ((26xsal normativo)+(52xsal normativo))x0,0078%+3000*0,00955% por vigilante (Fórmula definida no subitem 5.3.5 - Seguro de vida, invalidez e funeral - do Caderno de Logística Prestação de Serviços de Vigilância Patrimonial - MPOG/SLTI, de abril/2014)
A62: E | B62: Assiduidade | F62: 80 | H62: 2 | I62: 160 | L62: cláusula décima segunda
A63: F | B63: Jovem Aprendiz | F63: 141.04 | H63: 2 | I63: 282.08 | L63: cláusula vigésima sexta
B64: Total de Benefícios mensais e diários | I64: =SUM(I58:K63) -> 1837.94
A66: QUADRO-RESUMO - Módulo 2 - Encargos e Benefícios Anuais, Mensais e Diários
A67: 2.1 | B67: 13° Salário, Férias e Adicional de Férias | H67: =H40 -> 0.1944 | J67: =J40 -> 858.98
A68: 2.2 | B68: Encargos previdenciários, FGTS e outras contribuições | H68: =H53 -> 0.368 | J68: =J53 -> 1942.17
A69: 2.3 | B69: Benefícios Mensais e Diários | J69: =I64 -> 1837.94
A70: TOTAL | J70: =SUM(J67:K69) -> 4639.09
A72: MÓDULO 3 - Provisão para Rescisão
A74: 3 | B74: Provisão para Rescisão | H74: % | J74: Valor (R$)
A75: A | B75: Aviso prévio indenizado | H75: 0.0042 | J75: =$I$32*H75 -> 18.56
A76: B | B76: Incidência do FGTS sobre o aviso prévio indenizado | H76: =H50*H75 -> 0.0003 | J76: =$I$32*H76 -> 1.33
A77: C | B77: Multa sobre FGTS sobre o aviso prévio indenizado | H77: 0.008 | J77: 35.35
A78: D | B78: Aviso prévio trabalhado | H78: 0.0194 | J78: 85.72
A79: E | B79: Incidência dos encargos do submódulo 4.1 sobre aviso prévio trabalhado | H79: =H53*H78 -> 0.0071 | J79: 31.37
A80: F | B80: Multa sobre FGTS sobre o aviso prévio trabalhado | H80: 0.032 | J80: 141.4
A81: TOTAL | H81: =SUM(H75:I80) -> 0.071 | J81: =SUM(J75:K80) -> 313.73
A83: MÓDULO 4 - Custo de Reposição do Profissional Ausente e Intrajornada
A84: Submódulo 4.1 - Custo de Reposição do Profissional Ausente
A86: 4.1 | B86: Custo de Reposição do Profissional Ausente | H86: % | J86: Valor (R$)
A87: A | B87: Férias | H87: 0.0833 | J87: =($I$32+$J$70+$J$81)*H87 -> 780.64
A88: B | B88: Ausências por doença | H88: 0.007 | J88: =($I$32+$J$70+$J$81)*H88 -> 65.6
A89: C | B89: Licença Paternidade | H89: 0.005 | J89: 46.86
A90: D | B90: Ausências legais | H90: 0.003 | J90: 28.11
A91: E | B91: Ausência por Acidente de Trabalho | H91: 0.003 | J91: 28.11
A92: TOTAL | H92: =SUM(H87:I91) -> 0.1013 | J92: =SUM(J87:K91) -> 949.32
A94: Submódulo 4.2 - Intrajornada
A96: 4.2 | B96: Intrajornada | F96: Valor Unitário | I96: Valor (R$)
A97: A | B97: Intrajornada Diurna | F97: =(((SUM(F28:G31)/220)*1.5)*(30/2)) -> 225.95 | H97: 2 | I97: =F97*H97 -> 451.9
A98: TOTAL | I98: =I97 -> 451.9
A100: QUADRO-RESUMO - Módulo 4 - Custo de Reposição do Profissional Ausente e Intrajornada
A101: 4.1 | B101: Custo de Reposição do Profissional Ausente | H101: =H92 -> 0.1013 | J101: =J92 -> 949.32
A102: 4.2 | B102: Intrajornada | J102: =I97 -> 451.9
A103: TOTAL | J103: =SUM(J101:K102) -> 1401.22
A105: MÓDULO 5 - Insumos Diversos
A107: 5 | B107: Insumos Diversos | F107: Valor Unitário | I107: Valor (R$)
A108: A | B108: Materiais e Equipamentos | F108: ='Mat e Equip - Uniformes'!F13 -> 65.93 | H108: 2 | I108: =F108*H108 -> 131.86
A109: B | B109: Uniformes | F109: ='Mat e Equip - Uniformes'!B23 -> 32.12 | H109: 2 | I109: =F109*H109 -> 64.24
B110: Total de Insumos Diversos | I110: =SUM(I108:K109) -> 196.1
A112: MÓDULO 6 - Custos indiretos, tributos e lucros
A114: 6 | B114: Custos indiretos, tributos e lucros | H114: % | J114: Valor (R$)
A115: A | B115: Custos Indiretos | H115: 0.06 | J115: =J133*H115 -> 658.12
A116: B | B116: Lucros | H116: 0.0679 | J116: =(J115+J133)*H116 -> 789.46
A117: C | B117: Tributos | H117: =H119+H120+H123 -> 0.0865 | J117: =J119+J120+J123 -> 1175.71
B118: B.1 Tributos Federais
B119: COFINS | H119: 0.03 | J119: =(L119/(1-H117))*H119 -> 407.76 | L119: =J133+J115+J116 -> 12416.32
B120: PIS | H120: 0.0065 | J120: =(L119/(1-H117))*H120 -> 88.35
B121: B.2 Tributos Estaduais
B122: B.3 Tributos Municipais
B123: ISS | H123: 0.05 | J123: =(L119/(1-H117))*H123 -> 679.6
A124: TOTAL | J124: =J115+J117+J116 -> 2623.29
A126: Anexo III - B - Quadro-resumo do Custo por Posto de Serviço
B127: Mão-de-obra vinculada à execução contratual (valor por empregado) | J127: (R$)
A128: A | B128: Módulo 1 - Composição da Remuneração | J128: =I32 -> 4418.6
A129: B | B129: Módulo 2 - Encargos e Benefícios Anuais, Mensais e Diários | J129: =J70 -> 4639.09
A130: C | B130: Módulo 3 - Provisão para Rescisão | J130: =J81 -> 313.73
A131: D | B131: Módulo 4 - Custo de Reposição do Profissional Ausente e Intrajornada | J131: =J103 -> 1401.22
A132: E | B132: Módulo 5 - Insumos Diversos | J132: =I110 -> 196.1
A133: Subtotal (A + B + C + D + E) | J133: =SUM(J128:K132) -> 10968.74
A134: F | B134: Módulo 6 - Custos indiretos, tributos e lucro | J134: =J124 -> 2623.29
A135: Valor total do Posto de Vigilância 12 horas diurnas com 02 vigilantes | J135: =SUM(J133:K134) -> 13592.03

Sheet Posto Noturno Recife
A1: CODEVASF RECIFE
A2: PLANILHA DE CUSTOS E FORMAÇÃO DE PREÇOS
A3: N° Processo: 59501.000532/2025-13
A4: Licitação N°
A5: Discriminação dos Serviços (dados referentes à contratação)
A6: A | B6: Data de apresentação da proposta (dia/mês/ano)
A7: B | B7: Município/UF | H7: Recife/PE
A8: C | B8: Ano Acordo, Convenção ou Sentença Normativa em Dissídio Coletivo | H8: 2025
A9: D | B9: Nº de meses de execução contratual | H9: 6
A11: IDENTIFICAÇÃO DO SERVIÇO
A12: Tipo de Serviço | D12: Unidade de Medida
A14: Vigilância Patrimonial | D14: POSTO DE SERVIÇO
A16: Mão-de-obra
A18: Dados a contratação dos custos referente à mão-de-obra
A19: 1 | B19: Tipo de serviço (mesmo serviço com características distintas)
A20: 2 | B20: Salário Normativo da Categoria Profissional | I20: 1699.46
A21: 3 | B21: Categoria profissional (vinculada à execução contratual) | I21: Vigilância Armada 12 Horas Noturna
B22: Classificação Brasileira de Ocupações (CBO) | I22: CBO 5173-30
A23: 4 | B23: Data base da categoria (dia/mês/ano) | I23: 2025-01-01
A25: MÓDULO 1 - Composição da remuneração
A27: 1 | B27: Remuneração | F27: Valor Unitário | I27: Valor (R$)
A28: A | B28: Salário Base | F28: =I20 -> 1699.46 | H28: 2 | I28: =F28*H28 -> 3398.92
A29: B | B29: Adicional de Periculosidade | F29: =F28*30% -> 509.84 | H29: 2 | I29: =F29*H29 -> 1019.68
A30: C | B30: Adicional Noturno | F30: =((F28+F29)/220)*20%*(60/52.5)*7*15 -> 241.01 | H30: 2 | I30: 482.02
A31: D | B31: Hora Noturna Reduzida | F31: =((F29+F28+F30)/220)*1.2*15 -> 200.48 | H31: 2 | I31: 400.96
B32: Total da Remuneração | I32: =SUM(I28:K31) -> 5301.58
A34: MÓDULO 2 - Encargos e Benefícios Anuais, Mensais e Diários
A35: Submódulo 2.1 - 13° (décimo terceiro) Salário, Férias e Adicional de Férias
A37: 2.1 | B37: 13° Salário, Férias e Adicional de Férias | H37: % | J37: Valor (R$)
A38: A | B38: 13° Salário | H38: 0.0833 | J38: =$I$32*H38 -> 441.62
A39: B | B39: Férias e Adicional de Férias | H39: 0.1111 | J39: =$I$32*H39 -> 589.01
A40: TOTAL | H40: =SUM(H38:I39) -> 0.1944 | J40: =SUM(J38:K39) -> 1030.63
A42: Submódulo 2.2 - Encargos previdenciários, FGTS e outras contribuições
A44: 2.2 | B44: Encargos previdenciários, FGTS e outras contribuições | H44: % | J44: Valor (R$)
A45: A | B45: INSS | H45: 0.2 | J45: =($I$32+$J$40)*H45 -> 1266.44
A46: B | B46: SESI ou SESC | H46: 0.015 | J46: =($I$32+$J$40)*H46 -> 94.98
A47: C | B47: SENAI ou SENAC | H47: 0.01 | J47: 63.32
A48: D | B48: INCRA | H48: 0.002 | J48: 12.66
A49: E | B49: Salário Educação | H49: 0.025 | J49: 158.31
A50: F | B50: FGTS | H50: 0.08 | J50: 506.58
A51: G | B51: Seguro Acidente do Trabalho | H51: 0.03 | J51: 189.97
A52: H | B52: SEBRAE | H52: 0.006 | J52: 37.99
A53: TOTAL | H53: =SUM(H45:I52) -> 0.368 | J53: =SUM(J45:K52) -> 2330.25
A55: Submódulo 2.3 - Benefícios Mensais e Diários
A57: 2.3 | B57: Benefícios Mensais e Diários | F57: Valor Unitário | I57: Valor (R$)
A58: A | B58: Transporte | F58: =(15*2*4.3)-(F28*6%) -> 27.03 | H58: 2 | I58: =F58*H58 -> 54.06
A59: B | B59: Auxílio Alimentação (R$ 39,53 por dia) | F59: =(40.53-1)*15 -> 592.95 | H59: 2 | I59: =F59*H59 -> 1185.9 | L59: cláusula décima quarta
A60: C | B60: Beneficios Sociais | F60: 67.32 | H60: 2 | I60: 134.64 | L60: parágrafo segundo da cláusula décima sexta
A61: D | B61: Seguro de Vida, invalidez e funeral | F61: =((26*I20)+(52*I20))*0.0078%+3000*0.00955% -> 10.63 | H61: 2 | I61: 21.26 | L61: ((26xsal normativo)+(52xsal normativo))x0,0078%+3000*0,00955% por vigilante (Fórmula definida no subitem 5.3.5 - Seguro de vida, invalidez e funeral - do Caderno de Logística Prestação de Serviços de Vigilância Patrimonial - MPOG/SLTI, de abril/2014)
A62: E | B62: Assiduidade | F62: 80 | H62: 2 | I62: 160 | L62: cláusula décima segunda
A63: F | B63: Jovem Aprendiz | F63: 141.04 | H63: 2 | I63: 282.08 | L63: cláusula vigésima sexta
B64: Total de Benefícios mensais e diários | I64: =SUM(I58:K63) -> 1837.94
A66: QUADRO-RESUMO - Módulo 2 - Encargos e Benefícios Anuais, Mensais e Diários
A67: 2.1 | B67: 13° Salário, Férias e Adicional de Férias | H67: =H40 -> 0.1944 | J67: =J40 -> 1030.63
A68: 2.2 | B68: Encargos previdenciários, FGTS e outras contribuições | H68: =H53 -> 0.368 | J68: =J53 -> 2330.25
A69: 2.3 | B69: Benefícios Mensais e Diários | J69: =I64 -> 1837.94
A70: TOTAL | J70: =SUM(J67:K69) -> 5198.82
A72: MÓDULO 3 - Provisão para Rescisão
A74: 3 | B74: Provisão para Rescisão | H74: % | J74: Valor (R$)
A75: A | B75: Aviso prévio indenizado | H75: 0.0042 | J75: =$I$32*H75 -> 22.27
A76: B | B76: Incidência do FGTS sobre o aviso prévio indenizado | H76: =H50*H75 -> 0.0003 | J76: =$I$32*H76 -> 1.59
A77: C | B77: Multa sobre FGTS sobre o aviso prévio indenizado | H77: 0.008 | J77: 42.41
A78: D | B78: Aviso prévio trabalhado | H78: 0.0194 | J78: 102.85
A79: E | B79: Incidência dos encargos do submódulo 4.1 sobre aviso prévio trabalhado | H79: =H53*H78 -> 0.0071 | J79: 37.64
A80: F | B80: Multa sobre FGTS sobre o aviso prévio trabalhado | H80: 0.032 | J80: 169.65
A81: TOTAL | H81: =SUM(H75:I80) -> 0.071 | J81: =SUM(J75:K80) -> 376.41
A83: MÓDULO 4 - Custo de Reposição do Profissional Ausente e Intrajornada
A84: Submódulo 4.1 - Custo de Reposição do Profissional Ausente
A86: 4.1 | B86: Custo de Reposição do Profissional Ausente | H86: % | J86: Valor (R$)
A87: A | B87: Férias | H87: 0.0833 | J87: =($I$32+$J$70+$J$81)*H87 -> 906.04
A88: B | B88: Ausências por doença | H88: 0.007 | J88: =($I$32+$J$70+$J$81)*H88 -> 76.14
A89: C | B89: Licença Paternidade | H89: 0.005 | J89: 54.38
A90: D | B90: Ausências legais | H90: 0.003 | J90: 32.63
A91: E | B91: Ausência por Acidente de Trabalho | H91: 0.003 | J91: 32.63
A92: TOTAL | H92: =SUM(H87:I91) -> 0.1013 | J92: =SUM(J87:K91) -> 1101.82
A94: Submódulo 4.2 - Intrajornada
A96: 4.2 | B96: Intrajornada | F96: Valor Unitário | I96: Valor (R$)
A97: A | B97: Intrajornada Noturna | F97: =(((SUM(F28:G31)/220)*1.5)*(30/2)) -> 271.1 | H97: 2 | I97: =F97*H97 -> 542.2
A98: TOTAL | I98: =I97 -> 542.2
A100: QUADRO-RESUMO - Módulo 4 - Custo de Reposição do Profissional Ausente e Intrajornada
A101: 4.1 | B101: Custo de Reposição do Profissional Ausente | H101: =H92 -> 0.1013 | J101: =J92 -> 1101.82
A102: 4.2 | B102: Intrajornada | J102: =I97 -> 542.2
A103: TOTAL | J103: =SUM(J101:K102) -> 1644.02
A105: MÓDULO 5 - Insumos Diversos
A107: 5 | B107: Insumos Diversos | F107: Valor Unitário | I107: Valor (R$)
A108: A | B108: Materiais e Equipamentos | F108: ='Mat e Equip - Uniformes'!F13 -> 65.93 | H108: 2 | I108: =F108*H108 -> 131.86
A109: B | B109: Uniformes | F109: ='Mat e Equip - Uniformes'!B23 -> 32.12 | H109: 2 | I109: =F109*H109 -> 64.24
B110: Total de Insumos Diversos | I110: =SUM(I108:K109) -> 196.1
A112: MÓDULO 6 - Custos indiretos, tributos e lucros
A114: 6 | B114: Custos indiretos, tributos e lucros | H114: % | J114: Valor (R$)
A115: A | B115: Custos Indiretos | H115: 0.06 | J115: =J133*H115 -> 763.02
A116: B | B116: Lucros | H116: 0.0679 | J116: =(J115+J133)*H116 -> 915.29
A117: C | B117: Tributos | H117: =H119+H120+H123 -> 0.0865 | J117: =J119+J120+J123 -> 1363.1
B118: B.1 Tributos Federais
B119: COFINS | H119: 0.03 | J119: =(L119/(1-H117))*H119 -> 472.75 | L119: =J133+J115+J116 -> 14395.24
B120: PIS | H120: 0.0065 | J120: =(L119/(1-H117))*H120 -> 102.43
B121: B.2 Tributos Estaduais
B122: B.3 Tributos Municipais
B123: ISS | H123: 0.05 | J123: =(L119/(1-H117))*H123 -> 787.92
A124: TOTAL | J124: =J115+J117+J116 -> 3041.41
A126: Anexo III - B - Quadro-resumo do Custo por Posto de Serviço
B127: Mão-de-obra vinculada à execução contratual (valor por empregado) | J127: (R$)
A128: A | B128: Módulo 1 - Composição da Remuneração | J128: =I32 -> 5301.58
A129: B | B129: Módulo 2 - Encargos e Benefícios Anuais, Mensais e Diários | J129: =J70 -> 5198.82
A130: C | B130: Módulo 3 - Provisão para Rescisão | J130: =J81 -> 376.41
A131: D | B131: Módulo 4 - Custo de Reposição do Profissional Ausente e Intrajornada | J131: =J103 -> 1644.02
A132: E | B132: Módulo 5 - Insumos Diversos | J132: =I110 -> 196.1
A133: Subtotal (A + B + C + D + E) | J133: =SUM(J128:K132) -> 12716.93
A134: F | B134: Módulo 6 - Custos indiretos, tributos e lucro | J134: =J124 -> 3041.41
A135: Valor total do Posto de Vigilância 12 horas noturnas com 02 vigilantes | J135: =SUM(J133:K134) -> 15758.34

Sheet Mat e Equip - Uniformes
A1: PLANILHA DE INSUMOS
A3: Insumos | B3: Cálculo de Valores Mensais
A4: Descrição | B4: Aquisição [A] | C4: Tempo de Uso (mês)[B] | D4: Custo Mensal | E4: Reaproveitamento (2) | F4: Valor Mensal
A5: Armas - considerando possibilidade de revenda
A6: Revólver calibre 38 com, no mínimo, seis tiros e cano de quatro polegadas - reaproveitamento para 2 vigilantes por posto (diurno e noturno) (1) | B6: 6116.1 | C6: 60 | D6: =((B6-(B6*0.3))/C6)*1.0125 -> 72.25 | E6: 2 | F6: =D6/E6 -> 36.13
A7: Materiais de Consumo - Fardas e Acessórios
A8: Apito de Metal Profissional Com Cordão (Contém 2 Unidades) | B8: 9.41 | C8: 12 | D8: =B8/C8 -> 0.78 | E8: 2 | F8: =D8/E8 -> 0.39 | G8: (https://www.magazineluiza.com.br/apito-de-metal-profissional-com-cordao-contem-2-unidades-art-sport/p/bg871ck88g/es/apts/?&seller_id=m5armarinhosoficial&utm_source=google&utm_medium=cpc&utm_term=79722&utm_campaign=google_eco_per_ven_pla_es_apo_3p_bkf-es-rpf-su-csp&utm_content=&partner_id=79722&gclsrc=aw.ds&gad_source=4&gad_campaignid=22556056237&gbraid=0AAAAAD4zZmRKe5NuZBikTATuE4P97zTAp&gclid=CjwKCAjw1ozEBhAdEiwAn9qbzYM97Gx779LBMYYTxYWNKgjWtfCt65cErZyV4KmC-6gmXu-JcDGiKRoCsY4QAvD_BwE)
A9: Cinto Operacional com Coldres adequados ao armamento fornecido; | B9: 59 | C9: 12 | D9: =B9/C9 -> 4.92 | E9: 1 | F9: =D9/E9 -> 4.92 | G9: (https://www.google.com/search?sca_esv=6292aac01ea52d81&sxsrf=AHTn8zrexp4oth-EbPz7MQcLMN76h93Pmw:1744116680846&q=Pre%C3%A7o+de+cinto+para+vigilante&udm=28&fbs=ABzOT_BYhiZpMrUAF0c9tORwPGlsgFXPGtsKf3UCw_95hmysCFKFTbkd4NfKHmCO2FGoL3IGIbx8nCjdW7AcSvN70Hx8_HyOg3guyT0iSvRKzFaZFsRATk-KavIgGOIp4j87AA3KRXuNVHBpxFCwwJcacYj9AYsFF1t9zRrMWUSJ71pU4ES5GJZh3blxT0p6uia6xmLuw5uwvF9kiOr0S0ZP6BIkqXKqRw&ved=1t:220175&ictx=111&biw=1920&bih=919)+(https://www.google.com/search?q=coldre+para+38+vigilante&sca_esv=6292aac01ea52d81&udm=28&biw=1920&bih=919&sxsrf=AHTn8zp-JYaCGOh5wTZr4XgONsZLvhUmEg%3A1744116685462&ei=zRv1Z4_1G6qV5OUPn4GqkQo&oq=Pre%C3%A7o+de+cinto+para+vigilante&gs_lp=Ehlnd3Mtd2l6LW1vZGVsZXNzLXNob3BwaW5nIh5QcmXDp28gZGUgY2ludG8gcGFyYSB2aWdpbGFudGUqAggDMgoQABiwAxjWBBhHMgoQABiwAxjWBBhHMgoQABiwAxjWBBhHMgoQABiwAxjWBBhHMgoQABiwAxjWBBhHMgoQABiwAxjWBBhHMgoQABiwAxjWBBhHMgoQABiwAxjWBBhHSOUuUABYAHACeAGQAQCYAQCgAQCqAQC4AQHIAQCYAgKgAgiYAwCIBgGQBgiSBwEyoAcAsgcAuAcA&sclient=gws-wiz-modeless-shopping)+(https://www.google.com/search?q=porta+balas+para+cinto+de+vigilante&sca_esv=6292aac01ea52d81&udm=28&biw=1920&bih=919&sxsrf=AHTn8zoUJerjB2rmWPS8mQ8EXgX15vdSqQ%3A1744117094181&ei=Zh31Z4zrCt-_5OUPkISFuAo&ved=0ahUKEwiMtuG-vsiMAxXfH7kGHRBCAacQ4dUDCBA&uact=5&oq=porta+balas+para+cinto+de+vigilante&gs_lp=Ehlnd3Mtd2l6LW1vZGVsZXNzLXNob3BwaW5nIiNwb3J0YSBiYWxhcyBwYXJhIGNpbnRvIGRlIHZpZ2lsYW50ZUjgygFQ_jxYm8EBcAV4AZABAJgBxgWgAbsoqgEKMC4xLjIwLjYtMbgBA8gBAPgBAZgCB6ACwQPCAgoQABiwAxjWBBhHwgIEECEYCpgDAIgGAZAGCJIHBTUuMC4yoAfkGLIHAzItMrgHsAM&sclient=gws-wiz-modeless-shopping)+(https://www.google.com/search?q=porta+lanterna+para+cinto+de+vigilante&sca_esv=6292aac01ea52d81&udm=28&biw=1920&bih=919&sxsrf=AHTn8zq0FMN2B-qC58T52tDEAaqbQtcyEw%3A1744117288269&ei=KB71Z8eYEInd5OUPp_-DiQw&ved=0ahUKEwjHzKebv8iMAxWJLrkGHaf_IMEQ4dUDCBA&uact=5&oq=porta+lanterna+para+cinto+de+vigilante&gs_lp=Ehlnd3Mtd2l6LW1vZGVsZXNzLXNob3BwaW5nIiZwb3J0YSBsYW50ZXJuYSBwYXJhIGNpbnRvIGRlIHZpZ2lsYW50ZUjMMVD5FFjbKnACeAGQAQCYAZUCoAGrEKoBAzItObgBA8gBAPgBAZgCA6ACoALCAgoQABiwAxjWBBhHwgIEECEYCpgDAIgGAZAGCJIHBTIuMC4xoAflD7IHAzItMbgHmgI&sclient=gws-wiz-modeless-shopping)
A10: Munições de calibre 38 (12 unidades); | B10: =(947.05/100)*12 -> 113.65 | C10: 36 | D10: =B10/C10 -> 3.16 | E10: 1 | F10: 3.16 | G10: (https://www.cbcstore.com.br/store/pt/municoes/c/cat_municoes?q=%3Aprice-asc%3Acategory%3ACAT_MUNICOES_ARMAS_CURTAS%3Avendor%3Acbc%2523CB20%3Aclass_cb_ficha_produto_caliber%3A.38%2BSPL&text=#)
A11: Lanterna portátil com 02 (duas) pilhas ou recarregável; | B11: 8 | C11: 12 | D11: 0.67 | E11: 1 | F11: 0.67 | G11: (https://www.google.com/search?q=laterna+com+duas+pilhas+ou+recarreg%C3%A1vel&sca_esv=6292aac01ea52d81&udm=28&biw=1920&bih=919&sxsrf=AHTn8zr1MsXcBYtooNAMtBAzscDbuooHcQ%3A1744117968237&ei=0CD1Z-mdDqDO1sQP8LPjuQw&ved=0ahUKEwjpxcXfwciMAxUgp5UCHfDZOMcQ4dUDCBA&uact=5&oq=laterna+com+duas+pilhas+ou+recarreg%C3%A1vel&gs_lp=Ehlnd3Mtd2l6LW1vZGVsZXNzLXNob3BwaW5nIihsYXRlcm5hIGNvbSBkdWFzIHBpbGhhcyBvdSByZWNhcnJlZ8OhdmVsSOK1tAFQw5yzAViNsbQBcAF4AZABAJgBpgSgAd1DqgEMMC43LjMwLjEuMC4xuAEDyAEA-AEBmAIZoALHK8ICChAAGLADGNYEGEfCAgoQABiABBhDGIoFwgIFEAAYgATCAgcQABiABBgKwgIHEAAYgAQYDcICCRAAGNYFGA0YHsICChAAGIAEGNYFGA3CAgYQABgWGB7CAgsQABjWBRgIGA0YHpgDAIgGAZAGCJIHCjEuNC4xOC4xLjGgB-OKAbIHCjAuNC4xOC4xLjG4B8Mr&sclient=gws-wiz-modeless-shopping)
A12: Colete Balístico Nível II - reaproveitamento para 2 vigilantes por posto (diurno e noturno) - Tamanho M | B12: 2479 | C12: 60 | D12: =B12/C12 -> 41.32 | E12: 2 | F12: =D12/E12 -> 20.66 | G12: (http://loja.irontex.com.br/produtos/colete-extra-fit-nivel-iia-cor-preta-d4bc/)
A13: Total | B13: =SUM(B8:B12)+B6 -> 8785.16 | D13: =SUM(D8:D12)+D6 -> 123.1 | E13: 1 | F13: =SUM(F8:F12)+F6 -> 65.93
A14: 1. Fórmula Custo Mensal: (([A]-([A]*30%))/[B])*(1+1,25%), onde 30% é o custo residual do equipamento; e 1,25% a taxa Selic (15% a.a.) mensalisada para cálculo de juros sobre o capital empregado.
A15: 2. Reaproveitamento: nº de compartilhamentos de equipamentos entre os vigilantes do posto de segurança.
A17: 3. FARDAMENTO
A18: FARDA (2 conjuntos) | B18: =120.59*2 -> 241.18 | G18: (https://www.google.com/search?q=uniforme+vigilante+completo&sca_esv=89bf5c8dfd0dab45&udm=28&biw=1920&bih=919&sxsrf=AHTn8zpEFpSL2T8erCTCHniR18HsK8HFlQ%3A1744123075969&ei=wzT1Z871Ou3C5OUPobSamQE&oq=pre%C3%A7o+de+uniformes+para+vigilantes+de+seguran%C3%A7a&gs_lp=Ehlnd3Mtd2l6LW1vZGVsZXNzLXNob3BwaW5nIjFwcmXDp28gZGUgdW5pZm9ybWVzIHBhcmEgdmlnaWxhbnRlcyBkZSBzZWd1cmFuw6dhKgIIADIKEAAYsAMY1gQYRzIKEAAYsAMY1gQYRzIKEAAYsAMY1gQYRzIKEAAYsAMY1gQYRzIKEAAYsAMY1gQYRzIKEAAYsAMY1gQYRzIKEAAYsAMY1gQYRzIKEAAYsAMY1gQYR0iZEFAAWABwAXgBkAEAmAEAoAEAqgEAuAEByAEAmAIBoAIDmAMAiAYBkAYIkgcBMaAHALIHALgHAA&sclient=gws-wiz-modeless-shopping)
A19: BONÉ (2 unidades) | B19: =2*29.7 -> 59.4 | G19: (https://www.google.com/search?q=bon%C3%A9+vigilante+&sca_esv=89bf5c8dfd0dab45&udm=28&biw=1920&bih=919&sxsrf=AHTn8zo0XWO1W2OT5YqUqxNrYKlEzCWu6g%3A1744123167089&ei=HzX1Z4iaBbOw5OUPo4nhoQw&ved=0ahUKEwjIpcaO1ciMAxUzGLkGHaNEOMQQ4dUDCBA&uact=5&oq=bon%C3%A9+vigilante+&gs_lp=Ehlnd3Mtd2l6LW1vZGVsZXNzLXNob3BwaW5nIhBib27DqSB2aWdpbGFudGUgMgYQABgWGB5IjzdQzA1Y_DNwAngBkAEAmAHlAqAB9Q6qAQUyLTcuMbgBA8gBAPgBAZgCBKAC0QPCAgoQABiwAxjWBBhHwgILEAAY1gUYCBgNGB6YAwCIBgGQBgiSBwUyLjAuMqAHoBGyBwMyLTK4B8wD&sclient=gws-wiz-modeless-shopping)
A20: BOTAS/COTURNO (1 par) | B20: =1*64.9 -> 64.9 | G20: (https://www.google.com/search?q=coturno+masculino&sca_esv=89bf5c8dfd0dab45&udm=28&biw=1920&bih=919&sxsrf=AHTn8zrEavyZNZ5fNN1S4DhM9pDO_oIg9A%3A1744123853914&ei=zTf1Z5bLN9LK5OUPydmj2Ao&oq=cuturn&gs_lp=Ehlnd3Mtd2l6LW1vZGVsZXNzLXNob3BwaW5nIgZjdXR1cm4qAggBMgcQABiABBgKMgcQABiABBgKMgcQABiABBgKMgcQABiABBgKMgcQABiABBgKMgcQABiABBgKMgcQABiABBgKMgcQABiABBgKMgcQABiABBgKMgcQABiABBgKSKg5UI0UWLofcAN4AJABAJgB2wKgAYgLqgEFMi01LjG4AQHIAQD4AQGYAgmgArYLwgIJEAAYsAMYCBgewgIKEAAYgAQYQxiKBcICBRAAGIAEmAMAiAYBkAYBkgcHMy4wLjUuMaAHqyKyBwUyLTUuMbgHsQs&sclient=gws-wiz-modeless-shopping)
A21: MEIAS (2 pares) | B21: =9.99*2 -> 19.98 | G21: (https://www.google.com.br/search?q=MEIA+SOCIAL+PRETA+PAR&sca_esv=cb97f40da6f73026&udm=28&sxsrf=AE3TifMaajiS7eHzOVv1KopTD0x0xjCsdA%3A1761753518083&ei=rjkCaeTqBKuj1sQP_ofdoQY&ved=0ahUKEwjk-YGl48mQAxWrkZUCHf5DN2QQ4dUDCBE&uact=5&oq=MEIA+SOCIAL+PRETA+PAR&gs_lp=Ehlnd3Mtd2l6LW1vZGVsZXNzLXNob3BwaW5nIhVNRUlBIFNPQ0lBTCBQUkVUQSBQQVJI-gtQlARYyAdwAXgBkAEAmAHsAaABggeqAQMyLTS4AQPIAQD4AQGYAgKgAukBwgIKEAAYsAMY1gQYR8ICBRAAGIAEwgIGEAAYFhgemAMAiAYBkAYIkgcFMS4wLjGgB9QEsgcDMi0xuAfhAcIHAzItMsgHDQ&sclient=gws-wiz-modeless-shopping)
A22: Total | B22: =SUM(B18:B21) -> 385.46
A23: Valor mensal por empregado com previsão de uso por 12 meses | B23: =B22/12 -> 32.12
A25: Consumo: prazo previsto (cáusula 57ª CCT 2025/2025) | B25: 1 ano
A26: Armas e coletes: tempo de uso de 60 meses
A27: Munições: tempo de uso de 36 meses
A64: Convenção Coletiva: NÚMERO DE REGISTRO NO MTE: PE000069/2021 DATA DE REGISTRO NO MTE: 27/01/2021 NÚMERO DA SOLICITAÇÃO: MR002705/2021 NÚMERO DO PROCESSO: 13623.100202/2021-16 DATA DO PROTOCOLO: 25/01/2021
A79: Paulista, 18 de agosto de 2021
